fUST/lending_fUST_20260102
["ID","MTS","AMOUNT","RATE_DAILY","PERIOD"]
[400309089,1767342086726,-314.99,0.0003883,120]
[400309090,1767342086801,-1310.34,0.0003886,120]
[400309091,1767342086872,-6562.48938813,0.00038875,60]
[400309092,1767342086945,-2000.0,0.000389,120]
[400309093,1767342087021,-1310.34,0.0003896,120]
[400309094,1767342087096,-250.0,0.00039,120]
[400309095,1767342087173,-11016.26782764,0.00039,120]
[400309096,1767342087246,-14999.999999,0.00039,120]
[400309097,1767342087326,-5000.0,0.00039,50]
[400309098,1767342087409,-2608.51338758,0.00039002,30]
[400309099,1767342087494,-200.0,0.00039029,120]
[400309100,1767342087595,-200.0,0.00039029,120]
[400309101,1767342087693,-200.0,0.00039029,120]
[400309102,1767342087780,-1310.34,0.0003906,120]
[400309103,1767342087863,-170.0,0.00039096,120]
[400309104,1767342087954,-1310.34,0.0003916,120]
[400309105,1767342088047,-632.64,0.00039178,45]
[400309106,1767342088135,-1310.34,0.0003926,120]
[400309107,1767342088221,-223.58873352,0.000393,120]
[400309108,1767342088304,-161.86536739,0.000393,120]
[400309109,1767342088395,-342.15229797,0.000393,120]
[400309110,1767342088480,-199.53059961,0.000393,120]
[400309111,1767342088567,-1310.34,0.0003936,120]
[400309112,1767342088656,-1310.34,0.0003946,120]
[400309113,1767342088739,-194.0,0.000395,120]
[400309114,1767342088825,-1310.34,0.0003956,120]
[400309115,1767342088906,-1310.34,0.0003966,120]
[400309116,1767342088984,-328.6654,0.000397,120]
[400309117,1767342089060,-632.64,0.00039726,46]
[400309118,1767342089138,-1310.34,0.0003976,120]
[400309119,1767342089217,-1310.34,0.0003986,120]
[400309120,1767342089296,-2000.0,0.000399,120]
[400309121,1767342089386,-555.0,0.0003995,120]
[400309122,1767342089475,-1310.34,0.0003996,120]
[400309123,1767342089559,-1888.27017323,0.0004,120]
[400309124,1767342089653,-1136.95485462,0.0004,30]
[400309125,1767342089740,-2255.42762377,0.0004,120]
[400309126,1767342089819,-1561.8120068,0.0004,120]
[400309127,1767342089894,-532.91918907,0.0004,30]
[400309128,1767342089973,-174.49024958,0.0004,120]
[400309129,1767342090053,-400.0,0.0004,120]
[400309130,1767342090135,-1906.45551427,0.0004,120]
[400309131,1767342090217,-500.0,0.0004,120]
[400309132,1767342090299,-16427.21510947,0.0004,120]
[400309133,1767342090401,-200.0,0.0004,120]
[400309134,1767342090495,-2555.25158663,0.0004,30]
[400309135,1767342090583,-184961.67340405,0.0004,120]
[400309136,1767342090682,-260.94801075,0.0004,120]
[400309137,1767342090770,-21125.03236033,0.0004,120]
[400309138,1767342090858,-49987.0125,0.0004,120]
[400309139,1767342090942,-222.0,0.0004,120]
[400309140,1767342091022,-1041.66666667,0.0004,120]
[400309141,1767342091103,-1041.66666667,0.0004,30]
[400309142,1767342091186,-1310.34,0.0004006,120]
[400309143,1767342091265,-380.79,0.0004012,30]
[400309144,1767342091354,-1310.34,0.0004016,120]
[400309145,1767342091449,-1310.34,0.0004026,120]
[400309146,1767342091536,-632.64,0.00040273,47]
[400309147,1767342091626,-1310.34,0.0004036,120]
[400309148,1767342091718,-223.58873352,0.000404,120]
[400309149,1767342091800,-161.86536739,0.000404,120]
[400309150,1767342091881,-342.15229797,0.000404,120]
[400309151,1767342091961,-199.53059961,0.000404,120]
[400309152,1767342092040,-1310.34,0.0004046,120]
[400309153,1767342092116,-150.0,0.000405,120]
[400309154,1767342092192,-535.0,0.000405,120]
[400309155,1767342092271,-1310.34,0.0004056,120]
[400309156,1767342092359,-1310.34,0.0004066,120]
[400309157,1767342092449,-1310.34,0.0004076,120]
[400309158,1767342092532,-632.64,0.00040821,48]
[400309159,1767342092619,-1310.34,0.0004086,120]
[400309160,1767342092698,-2000.0,0.000409,120]
[400309161,1767342092780,-1310.34,0.0004096,120]
[400309162,1767342092859,-1023.17611457,0.00040999,120]
[400309163,1767342092942,-1000.0,0.00041,120]
[400309164,1767342093024,-500.0,0.00041,120]
[400309165,1767342093110,-5000.0,0.00041,80]
[400309166,1767342093191,-2271.66230055,0.00041,120]
[400309167,1767342093273,-10000.0,0.00041,70]
[400309168,1767342093366,-2336.18,0.00041,120]
[400309169,1767342093461,-1310.34,0.0004106,120]
[400309170,1767342093548,-999.0,0.00041095,120]
[400309171,1767342093635,-2404.55,0.00041096,120]
[400309172,1767342093722,-1087.96,0.00041096,120]
[400309173,1767342093799,-500.0,0.00041096,31]
[400309174,1767342093990,-500.0,0.00041096,31]
[400309175,1767342094073,-500.0,0.00041096,31]
[400309176,1767342094153,-500.0,0.00041096,31]
[400309177,1767342094234,-500.0,0.00041096,31]
[400309178,1767342094315,-500.0,0.00041096,31]
[400309179,1767342094409,-500.0,0.00041096,31]
[400309180,1767342094499,-500.0,0.00041096,31]
[400309181,1767342094580,-500.0,0.00041096,31]
[400309182,1767342094659,-500.0,0.00041096,31]
[400309183,1767342094732,-500.0,0.00041096,31]
[400309184,1767342094806,-500.0,0.00041096,31]
[400309185,1767342094879,-500.0,0.00041096,31]
[400309186,1767342094959,-500.0,0.00041096,31]
[400309187,1767342095041,-500.0,0.00041096,31]
[400309188,1767342095119,-500.0,0.00041096,31]
[400309189,1767342095200,-500.0,0.00041096,31]
[400309190,1767342095280,-500.0,0.00041096,31]
[400309191,1767342095360,-500.0,0.00041096,31]
[400309192,1767342095447,-500.0,0.00041096,31]
[400309193,1767342095538,-500.0,0.00041096,31]
[400309194,1767342095632,-500.0,0.00041096,31]
[400309195,1767342095726,-500.0,0.00041096,31]
[400309196,1767342095808,-500.0,0.00041096,31]
[400309197,1767342095892,-354.82908931,0.00041096,31]
[400309198,1767342095973,-500.0,0.00041096,31]
[400309199,1767342096053,-500.0,0.00041096,31]
[400309200,1767342096136,-500.0,0.00041096,31]
[400309201,1767342096217,-500.0,0.00041096,31]
[400309202,1767342096312,-500.0,0.00041096,31]
[400309203,1767342096403,-500.0,0.00041096,31]
[400309204,1767342096490,-500.0,0.00041096,31]
[400309205,1767342096585,-500.0,0.00041096,31]
[400309206,1767342096680,-435.48290893,0.00041096,31]
[400309207,1767342096773,-500.0,0.00041096,31]
[400309208,1767342096867,-500.0,0.00041096,31]
[400309209,1767342096954,-215.05365655,0.00041096,31]
[400309210,1767342097038,-500.0,0.00041096,31]
[400309211,1767342097117,-500.0,0.00041096,31]
[400309212,1767342097202,-500.0,0.00041096,31]
[400309213,1767342097297,-500.0,0.00041096,31]
[400309214,1767342097395,-500.0,0.00041096,31]
[400309215,1767342097486,-500.0,0.00041096,31]
[400309216,1767342097573,-500.0,0.00041096,31]
[400309217,1767342097672,-500.0,0.00041096,31]
[400309218,1767342097757,-500.0,0.00041096,31]
[400309219,1767342097834,-500.0,0.00041096,31]
[400309220,1767342097914,-500.0,0.00041096,31]
[400309221,1767342097994,-500.0,0.00041096,31]
[400309222,1767342098077,-500.0,0.00041096,31]
[400309223,1767342098164,-500.0,0.00041096,31]
[400309224,1767342098246,-500.0,0.00041096,31]
[400309225,1767342098333,-500.0,0.00041096,31]
[400309226,1767342098426,-300.0,0.00041096,31]
[400309227,1767342098517,-200.0,0.00041096,31]
[400309228,1767342098604,-179.38246704,0.000411,120]
[400309229,1767342098696,-179.38246704,0.000411,120]
[400309230,1767342098781,-179.38246704,0.000411,120]
[400309231,1767342098861,-179.38,0.000411,120]
[400309232,1767342098946,-152.20330537,0.000411,120]
[400309233,1767342099024,-152.20330537,0.000411,120]
[400309234,1767342099107,-152.20330537,0.000411,120]
[400309235,1767342099195,-152.20330537,0.000411,120]
[400309236,1767342099277,-152.20330537,0.000411,120]
[400309237,1767342099370,-152.20330537,0.000411,120]
[400309238,1767342099471,-152.20330537,0.000411,120]
[400309239,1767342099561,-152.20330537,0.000411,120]
[400309240,1767342099652,-152.20330537,0.000411,120]
[400309241,1767342099737,-152.20330537,0.000411,120]
[400309242,1767342099819,-152.2,0.000411,120]
[400309243,1767342099897,-153.35721718,0.000411,120]
[400309244,1767342099974,-153.35721718,0.000411,120]
[400309245,1767342100055,-153.35721718,0.000411,120]
[400309246,1767342100139,-153.35721718,0.000411,120]
[400309247,1767342100227,-153.35721718,0.000411,120]
[400309248,1767342100317,-153.35721718,0.000411,120]
[400309249,1767342100415,-153.35721718,0.000411,120]
[400309250,1767342100503,-153.35721718,0.000411,120]
[400309251,1767342100589,-153.35721718,0.000411,120]
[400309252,1767342100677,-153.35721718,0.000411,120]
[400309253,1767342100760,-153.35721718,0.000411,120]
[400309254,1767342100840,-153.35721718,0.000411,120]
[400309255,1767342100920,-153.35721718,0.000411,120]
[400309256,1767342101000,-153.35721718,0.000411,120]
[400309257,1767342101082,-153.35,0.000411,120]
[400309258,1767342101163,-268.37513007,0.000411,120]
[400309259,1767342101239,-268.37513007,0.000411,120]
[400309260,1767342101325,-268.37513007,0.000411,120]
[400309261,1767342101424,-268.37513007,0.000411,120]
[400309262,1767342101523,-268.37513007,0.000411,120]
[400309263,1767342101620,-268.37513007,0.000411,120]
[400309264,1767342101831,-268.37513007,0.000411,120]
[400309265,1767342101908,-268.37513007,0.000411,120]
[400309266,1767342101984,-268.37513007,0.000411,120]
[400309267,1767342102058,-268.37513007,0.000411,120]
[400309268,1767342102133,-268.37513007,0.000411,120]
[400309269,1767342102209,-268.37513007,0.000411,120]
[400309270,1767342102284,-268.37513007,0.000411,120]
[400309271,1767342102374,-268.37513007,0.000411,120]
[400309272,1767342102467,-268.37513007,0.000411,120]
[400309273,1767342102556,-268.37513007,0.000411,120]
[400309274,1767342102641,-268.37513007,0.000411,120]
[400309275,1767342102723,-268.37513007,0.000411,120]
[400309276,1767342102800,-268.37513007,0.000411,120]
[400309277,1767342102876,-268.37,0.000411,120]
[400309278,1767342102948,-166.02043676,0.000411,120]
[400309279,1767342103024,-166.02043676,0.000411,120]
[400309280,1767342103099,-166.02043676,0.000411,120]
[400309281,1767342103175,-166.02043676,0.000411,120]
[400309282,1767342103252,-166.02043676,0.000411,120]
[400309283,1767342103329,-166.02043676,0.000411,120]
[400309284,1767342103409,-166.02043676,0.000411,120]
[400309285,1767342103492,-166.02,0.000411,120]
[400309286,1767342103585,-154.95240764,0.000411,120]
[400309287,1767342103670,-154.95240764,0.000411,120]
[400309288,1767342103753,-154.95240764,0.000411,120]
[400309289,1767342103836,-154.95240764,0.000411,120]
[400309290,1767342103915,-154.95240764,0.000411,120]
[400309291,1767342103992,-154.95240764,0.000411,120]
[400309292,1767342104071,-154.95240764,0.000411,120]
[400309293,1767342104148,-154.95240764,0.000411,120]
[400309294,1767342104222,-154.95240764,0.000411,120]
[400309295,1767342104302,-154.95240764,0.000411,120]
[400309296,1767342104393,-154.95240764,0.000411,120]
[400309297,1767342104472,-154.95240764,0.000411,120]
[400309298,1767342104557,-154.95240764,0.000411,120]
[400309299,1767342104646,-154.95240764,0.000411,120]
[400309300,1767342104724,-154.95240764,0.000411,120]
[400309301,1767342104801,-154.95240764,0.000411,120]
[400309302,1767342104879,-154.95240764,0.000411,120]
[400309303,1767342104959,-154.95240764,0.000411,120]
[400309304,1767342105041,-154.95240764,0.000411,120]
[400309305,1767342105122,-154.95,0.000411,120]
[400309306,1767342105202,-1310.34,0.0004116,120]
[400309307,1767342105279,-1041.66666667,0.000412,120]
[400309308,1767342105361,-1041.66666667,0.000412,30]
[400309309,1767342105444,-160.2224753,0.0004125,120]
[400309310,1767342105529,-1310.34,0.0004126,120]
[400309311,1767342105622,-328.66543,0.000413,120]
[400309312,1767342105712,-1310.34,0.0004136,120]
[400309313,1767342105797,-632.64,0.00041369,49]
[400309314,1767342105876,-620452.6291,0.0004144,30]
[400309315,1767342105957,-1310.34,0.0004146,120]
[400309316,1767342106033,-500.0,0.000415,120]
[400309317,1767342106108,-150.0,0.000415,120]
[400309318,1767342106186,-1310.34,0.0004156,120]
[400309319,1767342106272,-223.58873352,0.000416,120]
[400309320,1767342106372,-161.86536739,0.000416,120]
[400309321,1767342106461,-342.15229797,0.000416,120]
[400309322,1767342106558,-199.53059961,0.000416,120]
[400309323,1767342106652,-1310.34,0.0004166,120]
[400309324,1767342106729,-1310.34,0.0004176,120]
[400309325,1767342106806,-253.69337,0.000418,120]
[400309326,1767342106883,-1310.34,0.0004186,120]
[400309327,1767342106961,-2000.0,0.000419,120]
[400309328,1767342107046,-632.64,0.00041917,50]
[400309329,1767342107125,-297.12098373,0.0004195,120]
[400309330,1767342107203,-1310.34,0.0004196,120]
[400309331,1767342107281,-400.0,0.00042,120]
[400309332,1767342107373,-500.0,0.00042,120]
[400309333,1767342107463,-1310.34,0.0004206,120]
[400309334,1767342107555,-1310.34,0.0004216,120]
[400309335,1767342107653,-999.0,0.00042191,120]
[400309336,1767342107745,-1310.34,0.0004226,120]
[400309337,1767342107831,-1310.34,0.0004236,120]
[400309338,1767342107912,-1041.66666667,0.000424,120]
[400309339,1767342108000,-1041.66666667,0.000424,30]
[400309340,1767342108086,-1310.34,0.0004246,120]
[400309341,1767342108166,-632.64,0.00042465,51]
[400309342,1767342108243,-500.0,0.000425,120]
[400309343,1767342108326,-150.0,0.000425,120]
[400309344,1767342108417,-1310.34,0.0004256,120]
[400309345,1767342108506,-1310.34,0.0004266,120]
[400309346,1767342108590,-1310.34,0.0004276,120]
[400309347,1767342108668,-1310.34,0.0004286,120]
[400309348,1767342108743,-2000.0,0.000429,120]
[400309349,1767342108818,-1310.34,0.0004296,120]
[400309350,1767342108894,-475.99,0.00042986,30]
[400309351,1767342108968,-1000.0,0.00043,120]
[400309352,1767342109145,-506.78,0.00043,120]
[400309353,1767342109220,-500.0,0.00043,120]
[400309354,1767342109297,-632.64,0.00043013,52]
[400309355,1767342109384,-1310.34,0.0004306,120]
[400309356,1767342109464,-206.6,0.00043151,60]
[400309357,1767342109542,-1310.34,0.0004316,120]
[400309358,1767342109626,-1310.34,0.0004326,120]
[400309359,1767342109709,-999.0,0.00043287,120]
[400309360,1767342109788,-1310.34,0.0004336,120]
[400309361,1767342109862,-1881811.88447631,0.00043444,30]
[400309362,1767342127230,-150.0,0.00031897,30]
[400309363,1767342127334,-163.0,0.00034063,30]
[400309364,1767342127433,-179.41,0.00034796,30]
[400309365,1767342127536,-200.0,0.00035631,120]
[400309366,1767342127642,-163.0,0.00035766,30]
[400309367,1767342127743,-1227.372887,0.00036074,31]
[400309368,1767342127842,-1227.372887,0.00036074,31]
[400309369,1767342127938,-1227.372887,0.00036074,31]
[400309370,1767342128037,-1227.372887,0.00036074,31]
[400309371,1767342128133,-152.155007,0.00036074,31]
[400309372,1767342128229,-152.155007,0.00036074,31]
[400309373,1767342128331,-162.8222413,0.00037,120]
[400309374,1767342128433,-184.23902643,0.00037,120]
[400309375,1767342128532,-1227.372887,0.00037168,31]
[400309376,1767342128632,-1227.372887,0.00037168,31]
[400309377,1767342128726,-1227.372887,0.00037168,31]
[400309378,1767342128812,-1227.372887,0.00037168,31]
[400309379,1767342128903,-1227.372887,0.00037168,31]
[400309380,1767342128997,-1227.372887,0.00037168,31]
[400309381,1767342129081,-1227.372887,0.00037168,31]
[400309382,1767342129167,-1227.372888,0.00037168,31]
[400309383,1767342129250,-152.155007,0.00037168,31]
[400309384,1767342129345,-152.155007,0.00037168,31]
[400309385,1767342129477,-269.12,0.00037696,30]
[400309386,1767342129575,-658.06806146,0.000381,120]
[400309387,1767342129664,-162.8222413,0.000381,120]
[400309388,1767342129758,-184.23902643,0.000381,120]
[400309389,1767342129852,-658.06806146,0.000393,120]
[400309390,1767342129945,-162.8222413,0.000393,120]
[400309391,1767342130026,-184.23902643,0.000393,120]
[400309392,1767342130109,-658.06806146,0.000404,120]
[400309393,1767342130197,-358.82,0.00040596,30]
[400309394,1767342130280,-155.7,0.00041041,120]
[400309395,1767342130380,-658.06806146,0.000416,120]
[400309396,1767342130476,-239402.29492369,0.00043444,30]
[400309397,1767342130576,-1310.34,0.0004346,120]
[400309398,1767342130668,-448.53,0.00043495,30]
[400309399,1767342130757,-500.0,0.000435,120]
[400309400,1767342130842,-600.0,0.000435,120]
[400309401,1767342130923,-20182.41619981,0.000435,120]
[400309402,1767342131006,-1310.34,0.0004356,120]
[400309403,1767342131086,-632.83259315,0.00043561,53]
[400309404,1767342131156,-604.2427922,0.00043562,120]
[400309405,1767342131229,-1310.34,0.0004366,120]
[400309406,1767342131319,-1310.34,0.0004376,120]
[400309407,1767342131413,-1000.0,0.000438,90]
[400309408,1767342131614,-880.55,0.000438,120]
[400309409,1767342131701,-210.39273157,0.000438,30]
[400309410,1767342131780,-1310.34,0.0004386,120]
[400309411,1767342131867,-2000.0,0.000439,120]
[400309412,1767342131956,-1310.34,0.0004396,120]
[400309413,1767342132036,-400.0,0.00044,120]
[400309414,1767342132105,-500.0,0.00044,120]
[400309415,1767342132185,-155.7,0.00044027,120]
[400309416,1767342132272,-1310.34,0.0004406,120]
[400309417,1767342132368,-1310.34,0.0004416,120]
[400309418,1767342132471,-1310.34,0.0004426,120]
[400309419,1767342132571,-1310.78175989,0.0004436,120]
[400309420,1767342132674,-999.0,0.00044383,120]
[400309421,1767342132770,-368.359736,0.00044453,30]
[400309422,1767342132870,-376.5396692,0.00044479,30]
[400309423,1767342132963,-376.5396692,0.00044479,30]
[400309424,1767342133057,-376.5396692,0.00044479,30]
[400309425,1767342133149,-376.5396692,0.00044479,30]
[400309426,1767342133242,-376.5396692,0.00044479,30]
[400309427,1767342133341,-375.6421816,0.00044479,30]
[400309428,1767342133438,-500.0,0.000445,120]
[400309429,1767342133536,-600.0,0.000445,120]
[400309430,1767342133632,-184.2005119,0.00044602,30]
[400309431,1767342133722,-184.2005117,0.00044602,30]
[400309432,1767342133807,-23614.71411646,0.000447,120]
[400309433,1767342133889,-22363.15054103,0.000447,120]
[400309434,1767342133976,-2000.0,0.000449,120]
[400309435,1767342134067,-304.91142631,0.000449,120]
[400309436,1767342134157,-279.66915321,0.00045,120]
[400309437,1767342134245,-506.1470578,0.00045,120]
[400309438,1767342134335,-500.0,0.00045,120]
[400309439,1767342134432,-933.0,0.00045,120]
[400309440,1767342134527,-265.05734926,0.00045,120]
[400309441,1767342134625,-29777.39446841,0.00045,30]
[400309442,1767342134714,-2358.3691956,0.00045,120]
[400309443,1767342134796,-5311.8636558,0.00045,60]
[400309444,1767342134882,-200.0,0.00045,120]
[400309445,1767342134971,-4998.89715772,0.00045,120]
[400309446,1767342135065,-289465.59546189,0.00045,120]
[400309447,1767342135159,-1489.13113659,0.00045,120]
[400309448,1767342135255,-972.9839205,0.00045,120]
[400309449,1767342135358,-1614.30499218,0.00045,120]
[400309450,1767342135461,-30965.41393482,0.00045,120]
[400309451,1767342135564,-10000.0,0.00045,80]
[400309452,1767342135665,-385.0,0.00045,120]
[400309453,1767342135763,-2554.92892479,0.000454,120]
[400309454,1767342135860,-531816.5392,0.0004544,30]
[400309455,1767342135957,-1696971.3435,0.00045444,30]
[400309456,1767342136047,-999.0,0.00045479,120]
[400309457,1767342136134,-500.0,0.000455,120]
[400309458,1767342136226,-600.0,0.000455,120]
[400309459,1767342136320,-2000.0,0.000459,120]
[400309460,1767342136422,-300.0,0.00046,120]
[400309461,1767342136518,-500.0,0.00046,120]
[400309462,1767342136616,-867.02144389,0.00046,30]
[400309463,1767342136709,-538.24,0.00046395,30]
[400309464,1767342136796,-500.0,0.000465,120]
[400309465,1767342136877,-600.0,0.000465,120]
[400309466,1767342136965,-999.0,0.00046575,120]
[400309467,1767342137054,-2000.0,0.00046575,30]
[400309468,1767342137139,-2074.0,0.00046575,30]
[400309469,1767342137232,-2150.738,0.00046575,30]
[400309470,1767342137327,-2230.315306,0.00046575,30]
[400309471,1767342137430,-2312.83697232,0.00046575,30]
[400309472,1767342137531,-2398.4119403,0.00046575,30]
[400309473,1767342137634,-2487.15318209,0.00046575,30]
[400309474,1767342137721,-2579.17784983,0.00046575,30]
[400309475,1767342137809,-2674.60743027,0.00046575,30]
[400309476,1767342137905,-2773.56790519,0.00046575,30]
[400309477,1767342137998,-1903.0117682,0.00046575,30]
[400309478,1767342149542,-344.010306,0.00032148,31]
[400309479,1767342149642,-441.545424,0.00032148,31]
[400309480,1767342149742,-344.010306,0.00032148,31]
[400309481,1767342149831,-441.545424,0.00032148,31]
[400309482,1767342149920,-344.010306,0.00032148,31]
[400309483,1767342150005,-441.545424,0.00032148,31]
[400309484,1767342150089,-344.010306,0.00032148,31]
[400309485,1767342150179,-441.545424,0.00032148,31]
[400309486,1767342150264,-151.0,0.00032148,31]
[400309487,1767342150363,-271.630448,0.00032148,31]
[400309488,1767342150471,-152.155007,0.00036074,31]
[400309489,1767342150570,-152.155007,0.00036074,31]
[400309490,1767342150671,-152.155007,0.00037168,31]
[400309491,1767342150769,-152.155007,0.00037168,31]
[400309492,1767342150858,-152.155007,0.00037168,31]
[400309493,1767342150947,-152.155007,0.00037168,31]
[400309494,1767342151028,-152.155007,0.00037168,31]
[400309495,1767342151109,-152.155005,0.00037168,31]
[400309496,1767342151198,-344.010306,0.00037168,31]
[400309497,1767342151283,-441.545424,0.00037168,31]
[400309498,1767342151383,-344.010306,0.00037168,31]
[400309499,1767342151481,-441.545424,0.00037168,31]
[400309500,1767342151581,-344.010306,0.00037168,31]
[400309501,1767342151678,-441.545424,0.00037168,31]
[400309502,1767342151771,-344.010306,0.00037168,31]
[400309503,1767342151859,-441.545424,0.00037168,31]
[400309504,1767342151950,-344.010306,0.00037168,31]
[400309505,1767342152035,-441.545424,0.00037168,31]
[400309506,1767342152127,-344.010306,0.00037168,31]
[400309507,1767342152220,-441.545424,0.00037168,31]
[400309508,1767342152324,-344.010306,0.00037168,31]
[400309509,1767342152425,-441.545424,0.00037168,31]
[400309510,1767342152523,-344.010306,0.00037168,31]
[400309511,1767342152623,-441.545424,0.00037168,31]
[400309512,1767342152714,-344.010306,0.00037168,31]
[400309513,1767342152804,-441.545424,0.00037168,31]
[400309514,1767342152891,-344.010306,0.00037168,31]
[400309515,1767342152975,-441.545424,0.00037168,31]
[400309516,1767342153066,-344.010306,0.00037168,31]
[400309517,1767342153162,-441.545424,0.00037168,31]
[400309518,1767342153250,-344.010302,0.00037168,31]
[400309519,1767342153348,-441.545434,0.00037168,31]
[400309520,1767342153446,-151.0,0.00037168,31]
[400309521,1767342153546,-151.0,0.00037168,31]
[400309522,1767342153643,-151.0,0.00037168,31]
[400309523,1767342153783,-914.91,0.00042,30]
[400309524,1767342153890,-5355.29,0.00045,120]
[400309525,1767342154000,-263.97,0.00045,120]
[400309526,1767342154091,-632.31,0.00045,120]
[400309527,1767342154179,-422083.6743,0.0004544,30]
[400309528,1767342154278,-973.17814948,0.00046575,30]
[400309529,1767342154383,-2982.60894464,0.00046575,30]
[400309530,1767342154482,-3092.96547559,0.00046575,30]
[400309531,1767342154583,-713.67888449,0.00046887,90]
[400309532,1767342154679,-2000.0,0.000469,120]
[400309533,1767342154774,-1000.0,0.00047,120]
[400309534,1767342154859,-500.0,0.00047,120]
[400309535,1767342154959,-10000.0,0.00047,100]
[400309536,1767342155055,-155.7,0.00047014,120]
[400309537,1767342155143,-5355.29,0.0004725,120]
[400309538,1767342155231,-632.31,0.0004725,120]
[400309539,1767342155326,-2336.18,0.0004742,120]
[400309540,1767342155427,-1696971.3435,0.00047444,30]
[400309541,1767342155526,-500.0,0.000475,120]
[400309542,1767342155749,-600.0,0.000475,120]
[400309543,1767342155855,-999.0,0.00047671,120]
[400309544,1767342155944,-2000.0,0.000479,120]
[400309545,1767342156031,-1000.0,0.00047999,120]
[400309546,1767342156116,-1328.0,0.00048,120]
[400309547,1767342156191,-400.0,0.00048,120]
[400309548,1767342156263,-1021.0,0.00048,120]
[400309549,1767342156338,-500.0,0.00048,120]
[400309550,1767342156423,-4143.8504,0.00048,120]
[400309551,1767342156520,-429.8,0.00048,120]
[400309552,1767342156621,-230.00462192,0.00048,120]
[400309553,1767342156724,-10000.0,0.00048,110]
[400309554,1767342156821,-1267.55786933,0.00048398,120]
[400309555,1767342156916,-2654.84876574,0.000484,60]
[400309556,1767342157008,-600.0,0.000485,120]
[400309557,1767342157103,-2316.526262,0.00048626,120]
[400309558,1767342157197,-999.0,0.00048767,120]
[400309559,1767342157297,-3666.04,0.00048794,82]
[400309560,1767342157392,-10238.0121416,0.000488,120]
[400309561,1767342157478,-200.0,0.000488,120]
[400309562,1767342157565,-10479.0,0.000488,120]
[400309563,1767342157657,-2000.0,0.000489,120]
[400309564,1767342157728,-3171.581972,0.000489,120]
[400309565,1767342157797,-1000.0,0.0004899,120]
[400309566,1767342157869,-1000.0,0.00049,120]
[400309567,1767342157941,-2200.0,0.00049,120]
[400309568,1767342158013,-74071.45910965,0.00049,120]
[400309569,1767342158090,-750.0,0.00049,120]
[400309570,1767342158165,-100000.0,0.00049,120]
[400309571,1767342158243,-10000.0,0.00049,120]
[400309572,1767342158327,-627.94,0.00049295,30]
[400309573,1767342158406,-1000.0,0.00049315,120]
[400309574,1767342158483,-935.9304733,0.00049315,120]
[400309575,1767342158566,-2056.58102049,0.0004943,120]
[400309576,1767342158645,-574988.69592177,0.00049444,30]
[400309577,1767342163163,-372.072173,0.00032148,31]
[400309578,1767342163247,-372.072173,0.00032148,31]
[400309579,1767342163333,-372.072173,0.00032148,31]
[400309580,1767342163426,-372.072173,0.00032148,31]
[400309581,1767342163532,-151.0,0.00032148,31]
[400309582,1767342163631,-150.54,0.00034428,60]
[400309583,1767342163710,-150.54,0.00034528,60]
[400309584,1767342163787,-150.54,0.00034628,60]
[400309585,1767342163863,-150.54,0.00034728,60]
[400309586,1767342163938,-150.54,0.00034828,60]
[400309587,1767342164016,-150.54,0.00034928,60]
[400309588,1767342164089,-150.54,0.00035028,60]